Cogmind - Beta 15 @@@ ROGUE MODE // 2025.10.16 @ 06:00:32 Player: time Result: Destroyed by D-53 Grenadier with Mini Grenade Launcher Performance ------------- Evolutions (1) 500 Regions Visited (3) 600 Robots Destroyed (29) 145 Value Destroyed (783) 783 Prototype IDs (0) 0 Alien Tech Used (0) 0 Bonus (0) 0 TOTAL SCORE: 2028 Bonus ------- None Cogmind --------- Core Integrity 0/400 Matter 264/300 Energy 31/100 System Corruption 0% Temperature Cool (0) Movement Core (50) Location -9/Mines Parts ------- > --- POWER (1) -------- (None) > --- PROPULSION (2) --- (None) > --- UTILITY (3) ------ Heat Sink ECM Suite > --- WEAPON (3) ------- (None) > --- INVENTORY (5) ---- Light Ion Engine Particle Gun Welding Torch Peak State ------------ > --- POWER ------------ Light Nuclear Core > --- PROPULSION ------- Aluminum Leg Aluminum Leg > --- UTILITY ---------- Heat Sink Small Storage Unit ECM Suite > --- WEAPON ----------- Medium Laser Particle Gun Particle Gun > --- INVENTORY -------- Light Ion Engine Particle Gun Heavy Assault Rifle [Rating: 13] Favorites ----------- Power Light Ion Engine Engine Light Ion Engine Power Core Light Nuclear Core Propulsion Aluminum Leg Leg Aluminum Leg Utility Small Storage Unit Device Heat Sink Storage Small Storage Unit Weapon Medium Laser Energy Gun Medium Laser Energy Cannon Light EM Pulse Cannon Ballistic Gun Heavy Assault Rifle Build | -11 -10 -9 -9 ------- Run | Yrd Mat Mat Min Slots Evolved 2 | . . 2 . Power . | . . . . Propulsion . | . . . . Utility 1 | . . 1 . Weapon 1 | . . 1 . Parts Attached 22 | 8 7 5 2 Power 5 | 2 3 . . Engine 4 | 2 2 . . Core 1 | . 1 . . Reactor . | . . . . Propulsion 4 | 2 2 . . Treads . | . . . . Leg 4 | 2 2 . . Wheel . | . . . . Hover . | . . . . Flight . | . . . . Utility 4 | 2 . 2 . Device 3 | 1 . 2 . Storage 1 | 1 . . . Processor . | . . . . Hackware . | . . . . Protection . | . . . . Artifact . | . . . . Weapon 9 | 2 2 3 2 Energy Gun 6 | 2 2 2 . Energy Cannon 1 | . . . 1 Ballistic Gun 2 | . . 1 1 Ballistic Cannon . | . . . . Launcher . | . . . . Special Weapon . | . . . . Impact Weapon . | . . . . Slashing Weapon . | . . . . Piercing Weapon . | . . . . Special Melee Weapon . | . . . . Unidentified Prototypes . | . . . . Parts Lost 14 | . 7 3 4 Power 3 | . 2 1 . Propulsion 4 | . 2 1 1 Utility 1 | . 1 . . Weapon 6 | . 2 1 3 Highest Loss Streak 7 | . 7 2 4 To Critical Strikes . | . . . . Average Backups 4 | 3 6 3 4 Power 1 | . 1 1 1 Propulsion 1 | 1 2 . . Utility . | . 1 . . Weapon 1 | . 1 1 2 Tool/Special . | . . . . Unused Backups 7 | . 5 . 2 Power 1 | . . . 1 Propulsion 5 | . 5 . . Utility . | . . . . Weapon . | . . . . Tool/Special 1 | . . . 1 Average Slot Usage (%) 91 | . 91 97 73 Engine 8 | . 11 3 9 Core 3 | . 1 7 . Leg 21 | . 24 20 8 Device 15 | . 9 21 22 Storage 12 | . 14 11 9 Energy Gun 25 | . 28 28 1 Ballistic Gun 3 | . . 3 15 Peak Build Rating 13 | 7 9 13 11 Average Rating 8 | 5 6 12 8 On Entrance 6 | . 7 9 11 Naked Turns . | . . . . Heaviest Build 21 | 14 15 21 21 Greatest Support 20 | 20 20 20 10 Greatest Overweight (x) 4 | 2 3 1 4 Average Overweight (x) . | . . . . Largest Inventory Capacity 8 | 8 8 8 8 Average Capacity 7 | 7 8 8 7 Most Carried 8 | 5 8 5 6 Average Carried 4 | 3 6 3 4 Final Capacity 8 | 8 8 8 5 Final Carried 6 | 5 6 2 3 Class Distribution -------------------- 65% | Mutant 19% | Scavenger-Gunner 15% | Gunner Dominant Class ---------------- Mutant | -10/Materials Scavenger-Gunner | -9/Materials Gunner | -9/Mines Resources | -11 -10 -9 -9 ----------- Run | Yrd Mat Mat Min Matter Collected 578 | 269 61 176 72 Remotely . | . . . . Salvage Created 956 | 83 533 340 . Parts 54 | 11 31 12 . Haulers Intercepted 1 | . 1 . . Recyclers Shooed 1 | . 1 . . Parts Field Recycled . | . . . . Retrieved Matter . | . . . . Parts Self-Destructed . | . . . . Prevented . | . . . . Kills | -11 -10 -9 -9 ------- Run | Yrd Mat Mat Min Combat Hostiles Destroyed 22 | . 13 9 . Guns 22 | . 13 9 . Classes Destroyed 7 | 1 4 2 . Tunneler 4 | 4 . . . Hauler 1 | . 1 . . Operator 1 | . 1 . . Watcher 1 | . . 1 . Swarmer 3 | . 3 . . Grunt 17 | . 10 7 . Sentry 2 | . . 2 . Best Kill Streak 6 | 4 3 6 . Combat Bots Only 6 | . 3 6 . Max Kills in Single Turn 1 | 1 1 1 . Gunslinging . | . . . . Exploded . | . . . . Melee . | . . . . Uniques/NPCs Destroyed . | . . . . Combat | -11 -10 -9 -9 -------- Run | Yrd Mat Mat Min Hostile Shots Fired 162 | . 85 64 13 Missed 43 | . 22 18 3 Hits 119 | . 63 46 10 Melee 1 | . . . 1 Projectile 118 | . 63 46 9 AOE 11 | . . . 11 Critical Strikes 1 | . . 1 . Damage Taken 1698 | . 657 635 406 Core 541 | . 128 194 219 Absorbed by Shields . | . . . . Core Remaining (%) 74 | 100 48 . . Volleys Fired 88 | 9 52 26 1 Largest 3 | 2 2 3 1 Hottest 180 | 90 115 180 56 Shots Fired 197 | 18 103 75 1 Gun 196 | 18 103 75 . Cannon 1 | . . . 1 Launcher . | . . . . Special . | . . . . Kinetic 19 | . . 19 . Thermal 137 | 9 72 56 . Explosive . | . . . . Electromagnetic 41 | 9 31 . 1 Robot Hit Streak 13 | 6 8 13 . Robot Miss Streak 6 | 4 6 3 1 Penetration Max . | . . . . Secondary Targets 5 | . 2 3 . Max Gunslinging Chain 1 | . 1 1 . Shots Hit Robots 124 | 9 67 48 . Core Hits 45 | 4 27 14 . Critical Kills . | . . . . Critical Parts Destroyed . | . . . . Critical Strikes 10 | . 4 6 . Burn 9 | . 3 6 . Corrupt 1 | . 1 . . Melee Attacks . | . . . . Impact . | . . . . Slashing . | . . . . Piercing . | . . . . Sneak Attacks . | . . . . Combat Hostiles . | . . . . Follow-up Attacks . | . . . . Damage Inflicted 1784 | 126 917 741 . Guns 1784 | 126 917 741 . Cannons . | . . . . Explosions . | . . . . Melee . | . . . . Ramming . | . . . . Kinetic 191 | . . 191 . Thermal 1295 | 102 643 550 . Explosive . | . . . . Electromagnetic 298 | 24 274 . . Impact . | . . . . Slashing . | . . . . Piercing . | . . . . Highest Corruption . | . . . . Average Corruption . | . . . . Corruption Purged . | . . . . Corruption Blocked . | . . . . Overload Shots . | . . . . Overflow Damage . | . . . . Projectiles . | . . . . Explosions . | . . . . Melee . | . . . . Knockbacks . | . . . . Impact . | . . . . Kinetic . | . . . . Secondary . | . . . . Self-Inflicted Damage . | . . . . Shots . | . . . . Rammed . | . . . . Targets Rammed 1 | . 1 . . Kicked 1 | . 1 . . Crushed . | . . . . Highest Temperature 636 | 96 390 636 . Average Temperature 164 | 41 122 280 . Received Heat Transfer 558 | . 291 267 . Effects 26 | . 2 24 . Shutdowns 5 | . 1 4 . Energy Bleed 4 | . 1 3 . Interference 2 | . . 2 . Matter Decay 4 | . . 4 . Short Circuit 2 | . . 2 . Damage (minor) 3 | . . 3 . Damage (major) 4 | . . 4 . Damage (core) 2 | . . 2 . Siege Activations . | . . . . Martial Activations . | . . . . Shielding Activations . | . . . . Robots Disrupted . | . . . . Combat Hostiles . | . . . . Robots Corrupted . | . . . . Combat Hostiles . | . . . . Parts Fried . | . . . . Impact Corruptions . | . . . . Robots Melted . | . . . . Combat Hostiles . | . . . . Parts Melted 11 | . 4 7 . Heat Transferred 4144 | 296 2072 1776 . Parts Sabotaged . | . . . . Parts Stolen . | . . . . Parts Stripped . | . . . . Power Chain Reactions . | . . . . Alert | -11 -10 -9 -9 ------- Run | Yrd Mat Mat Min Maximum Alert Level . | . . . . Low Security (%) 100 | 100 100 100 100 Level 1 . | . . . . Level 2 . | . . . . Level 3 . | . . . . Level 4 . | . . . . Level 5 . | . . . . High Security . | . . . . Max Security . | . . . . Peak Influence 137 | 10 114 137 51 Initial 51 | . . 31 51 Average 33 | 1 38 39 23 Influence Increases 636 | 20 356 260 . Destroy 0b10 Robot/C 440 | . 260 180 . Destroy 0b10 Robot/NC 35 | 20 10 5 . Destroy Leader 94 | . 62 32 . Successful Hack 34 | . 9 25 . Disable Machine 15 | . 15 . . Destroy Structure 3 | . . 3 . Lose Combat Pursuer 15 | . . 15 . Influence Decreases 636 | 20 282 201 133 Entered New Map 125 | . . 43 82 Time Decay 410 | 20 212 138 40 Lost Part 101 | . 70 20 11 Squads Dispatched 6 | . 5 1 . Investigation 2 | . 1 1 . Extermination . | . . . . Reinforcement 4 | . 4 . . Assault . | . . . . Garrison . | . . . . Intercept . | . . . . Searches Triggered . | . . . . Construction Impeded . | . . . . Haulers Reinforced . | . . . . Active Scanning Responses . | . . . . Cargo Convoy Interrupts . | . . . . Stealth | -11 -10 -9 -9 --------- Run | Yrd Mat Mat Min Distress Signals . | . . . . Communications Jammed . | . . . . Distress Signals . | . . . . Times Spotted 37 | . 21 14 2 Peak Tracking Total 5 | . 3 5 2 Tactical Retreats 2 | . . 2 . Traps | -11 -10 -9 -9 ------- Run | Yrd Mat Mat Min Traps Triggered 1 | . 1 . . Indirectly . | . . . . Trap Hack Attempts . | . . . . Triggered . | . . . . Disarmed 4 | . . 4 . Reprogrammed . | . . . . Reused . | . . . . Traps Extracted . | . . . . Installed . | . . . . Triggered . | . . . . Machines | -11 -10 -9 -9 ---------- Run | Yrd Mat Mat Min Machines Disabled 1 | . 1 . . Max in Single Turn 1 | . 1 . . Machines Repaired . | . . . . Machines Dismantled . | . . . . Machines Sabotaged . | . . . . Overloaded Fab Kills . | . . . . Hacking | -11 -10 -9 -9 --------- Run | Yrd Mat Mat Min Machines Accessed 7 | . 3 4 . Terminals 7 | . 3 4 . Fabricators . | . . . . Repair Stations . | . . . . Recycling Units . | . . . . Scanalyzers . | . . . . Garrison Access . | . . . . Total Hacks 28 | . 11 17 . Successful 13 | . 4 9 . Failed 15 | . 7 8 . Catastrophic 3 | . 1 2 . Database Lockouts . | . . . . Manual 14 | . 5 9 . Terminals 28 | . 11 17 . Fabricators . | . . . . Repair Stations . | . . . . Recycling Units . | . . . . Scanalyzers . | . . . . Garrison Access . | . . . . Terminal Hacks 9 | . 2 7 . Record 2 | . 1 1 . Robot Analysis 2 | . . 2 . Branch Access Points 1 | . . 1 . Locate Traps 1 | . 1 . . Disarm Traps 1 | . . 1 . Recall Investigation 1 | . . 1 . Zone Layout 1 | . . 1 . Fabricator Hacks . | . . . . Repair Station Hacks . | . . . . Recycling Unit Hacks . | . . . . Scanalyzer . | . . . . Garrison Access Hacks . | . . . . Unauthorized Hacks 4 | . 2 2 . Terminals 4 | . 2 2 . Botnet 4 | . 2 2 . Fabricators . | . . . . Repair Stations . | . . . . Recycling Units . | . . . . Scanalyzers . | . . . . Garrison Access . | . . . . Data Cores Recovered . | . . . . Used . | . . . . Hacking Detections 7 | . 3 4 . Full Trace Events 2 | . . 2 . Feedback Events . | . . . . Feedback Blocked . | . . . . Robot Schematics Acquired . | . . . . Robots Built . | . . . . Authchips . | . . . . Time . | . . . . Total Robot Build Rating . | . . . . Part Schematics Acquired . | . . . . Parts Built . | . . . . Authchips . | . . . . Time . | . . . . Total Part Build Rating . | . . . . Parts Repaired . | . . . . Time . | . . . . Parts Recycled . | . . . . Recycled Matter . | . . . . Retrieved Matter . | . . . . Retrieved Components . | . . . . Parts Scanalyzed . | . . . . Part Schematics Acquired . | . . . . Parts Damaged . | . . . . Bothacking | -11 -10 -9 -9 ------------ Run | Yrd Mat Mat Min Used RIF Installer . | . . . . Robots Hacked . | . . . . Non-combat . | . . . . Combat . | . . . . Robot Hacks Applied . | . . . . Relay Couplers Released . | . . . . Fabnet Peak Effective % . | . . . . Robots Rewired . | . . . . Allies Hacked . | . . . . Hacks Repelled . | . . . . Allies | -11 -10 -9 -9 -------- Run | Yrd Mat Mat Min Total Allies . | . . . . Largest Group . | . . . . Highest-Rated Group . | . . . . Highest-Rated Ally . | . . . . Total Orders . | . . . . Ally Attacks . | . . . . Total Damage . | . . . . Kills . | . . . . Allies Corrupted . | . . . . Allies Melted . | . . . . Intel | -11 -10 -9 -9 ------- Run | Yrd Mat Mat Min Active Infowar (turns) 767 | 9 386 245 127 Seismic 395 | 9 386 . . ECM 372 | . . 245 127 Robot Analysis Total 2 | . . 2 . Derelict Logs Recovered . | . . . . Drone Launches . | . . . . Drone Recoveries . | . . . . Exploration | -11 -10 -9 -9 ------------- Run | Yrd Mat Mat Min Turns Passed 1176 | 127 565 356 128 Spaces Moved 590 | 72 305 134 79 Core 58 | 7 7 . 44 Treads . | . . . . Legs 532 | 65 298 134 35 Wheels . | . . . . Hover . | . . . . Flight . | . . . . Fastest Speed 50 | 50 120 120 50 Average Speed 138 | 117 122 181 144 Slowest Speed 260 | 150 200 190 260 Overloaded Moves . | . . . . Propulsion Burnouts . | . . . . Robots Hopped . | . . . . Potential Cave-ins . | . . . . Cave-ins Triggered . | . . . . Exploration Rate (%) 28 | 4 59 22 29 Regions Visited 3 Branch Regions 1 Pre-discovered Areas . | . . . . Known Exits Taken 1 | . . 1 . Unknown Exits Taken 2 | 1 1 . . Scrap Searched 1 | . . . 1 Spaces Dug . | . . . . Terrain Destroyed . | . . . . Melee . | . . . . Projectile . | . . . . AOE . | . . . . Terrain Rammed . | . . . . Walls Destroyed . | . . . . Machines Disabled . | . . . . Actions | -11 -10 -9 -9 --------- Run | Yrd Mat Mat Min Total 773 | 93 397 189 94 Wait 38 | . 13 21 4 Move 587 | 71 304 133 79 Hop . | . . . . Pick Up 21 | 4 13 2 2 Fast Attach 9 | 8 . . 1 Attach 12 | . 6 5 1 Detach 3 | 1 . . 2 Swap 2 | . 1 1 . Drop 12 | . 7 1 4 Fire 88 | 9 52 26 1 Melee . | . . . . Ram . | . . . . Kick 1 | . 1 . . Crush . | . . . . Escape Stasis . | . . . . Rewire . | . . . . Trap . | . . . . Miscellaneous . | . . . . Route ------- -11/Scrapyard -10/Materials (discovered 2 exits: *Mat x2) -9/Materials (discovered 2 exits: *Min / Sto) -9/Mines History --------- Turn | Location | Event 16 | -11/Scrapyard | Discovered new exit (range 14) 128 | -11/Scrapyard | Entered Materials 289 | -10/Materials | Discovered new exit (range 3) 316 | -10/Materials | Build established: Mutant 603 | -10/Materials | Core integrity fell below 50% 621 | -10/Materials | Lost 7 parts (2p2n1u2w) 655 | -10/Materials | Discovered new exit (range 12) 693 | -10/Materials | Entered another Materials area 693 | -9/Materials | Evolved 2 slots: Utility x1, Weapon x1 885 | -9/Materials | Identified exit to Mines 885 | -9/Materials | Identified exit to Storage 1049 | -9/Materials | Entered Mines 1050 | -9/Mines | Assembled infested the area 1055 | -9/Mines | Assisted by a Guerilla fighting off Assembled 1112 | -9/Mines | Met a Derelict bent on vengeance 1137 | -9/Mines | Core integrity fell below 50% 1151 | -9/Mines | Core integrity fell below 20% 1177 | -9/Mines | Destroyed by D-53 Grenadier with Mini Grenade Launcher Last Messages --------------- 01057_ Acquired 42 matter. 01059_ Acquired Lgt. EM Pulse Cannon. 01064_ Acquired Shotgun. 01067_ Acquired Welding Torch. 01073_ K-01 Serf collects debris. 01136_ Pressure Siphon disabled. 01140_ Hvy. Assault Rifle destroyed. 01142_ The unstable cave ceiling collapses. 01142_ Shotgun destroyed. 01144_ Aluminum Leg destroyed. 01145_ K-01 Serf collects debris. 01149_ Lgt. EM Pulse Cannon destroyed. 01151_ Dropped Sml. Storage Unit. 01151_ Dropped Lgt. Ion Engine. 01152_ Dropped Broken Particle Gun. 01153_ The unstable cave ceiling collapses. 01153_ as-08321 destroyed. 01174_ U-05 Engineer lays Concrete. 01175_ U-05 Engineer builds a Wall. 01176_ Acquired 30 matter. Map ----- +----------------------------------------------------+ | | | | | | | ?????????????????????????????????????????????????? | | ?????????????????????????????????????????????????? | | ??????????????????????#######????????????????????? | | ?????????????????????## ##???????????????????? | | ?????????????????????# ##??????????????????? | | ?????????????????????# #??????????????????? | | ?????????????????????# ##?????????????????? | | ?????????????????????# ###???????????????? | | ?????????????????????# ###?????????????? | | ?????????????????????## #?????????????? | | ?????????????????????## #?????????????? | | ????????????????????## ##????????????? | | ??? ???????????????# ## #????????????? | | ??? ###??????####?# ### #????????????? | | ???? ?????# ## #### # ##????????????? | | ?????# ??### d##??##### #?????????????? | | ??????# ## ##???????###?????????????? | | ???????# # ##??????????????????????? | | ???????# [ ##?????????????????????? | | ???????# ! ##?????????##?????????? | | ???????## " [ = #????????# ##????????? | | ????????# " # ##??????? #??###???? | | ???????## " # @ ##?????? ### ???? | | ???????# ### #?????# ???? | | ###?### #??### #?? #???? | | ?####### #???## #?## #?? #???? | | ???????## #### ??## ### #?# ###?? | | ????????## ###### ### #??# ##? | | ?????????# ?????# ## #??# ## | | ?????????##?????? # ### #?## # | | ????????????????? ? #####?# ##?# # | | ????????????????? ? ?????## ##### # | | ?????????????????#?###?????#####% #? | | ???????????????????????????????## ##?? | | ????????????????????????????????# ###### ##??? | | ???????????????????????????????# #????# ##???? | | ????????????????????????????? ##????# #????? | | ??????????????????????????? ##?????# #????? | | ??????????????????????????## ##?????? ????? | | ???????????????????????????## #???????? """????? | | ????????????????????????????####???????? """"???? | | ???????????????????????????????????????? """"???? | | ???????????????????????????????????????# ???? | | ???????????????????????????????????????# ????? | | ???????????????????????????????????????## ???????? | | ????????????????????????????????????????? ???????? | | ????????????????????????????????????????? ???????? | +----------------------------------------------------+ Best States ------------- Heat Dissipation 38 Energy Generation 14 Energy Capacity 250 Matter Stores 300 Matter Capacity 300 Sight Range 16 Terrain Scan Density 10 ECM Strength 1 Evasion (%) 55 Item Schematics ----------------- None Robot Schematics ------------------ None Fabricated ------------ Nothing Repaired ---------- Nothing Alien Tech Used ----------------- None Achievements -------------- None Challenges ------------ None Game ------ Seed WeaponsBurstMinigun Manual? 0 Play Time 00:13:29 Cumulative 15.3 hours Start 2025.10.16 @ 05:48:35 End 2025.10.16 @ 06:00:32 Sessions 1 Manual Loads 0 Difficulty Rogue Special Mode None Game No. 28 Rogue 11 Adventurer 17 Explorer 0 Win Type - Total 0 Types 0/0/0/0/0/0/0/0/0/0 Lore% 13 Gallery% 26 Achievement% 23 Wizard Run 0 Options --------- Layout 0 ASCII 0 Keyboard 1 Movement Numpad Keybinds 0 Fullscreen 1 Font 18/X11 Map View 76x50 Zoom Use 0% Tactical HUD 1 Map Filters NONE Filters NONE Steam 1 RUN: f3948bcd-4cb9-4059-a5e8-de6082026bd0